Cogmind - Beta 10.2 @@@ ROGUE MODE // 2021.05.06 @ 17:17:51 Player: Trantor Result: Destroyed by G-47 Trooper with Particle Gun Performance ------------- Evolutions (0) 0 Regions Visited (2) 400 Robots Destroyed (40) 200 Value Destroyed (845) 845 Prototype IDs (4) 80 Alien Tech Used (0) 0 Bonus (0) 0 TOTAL SCORE: 1525 Bonus ------- None Cogmind --------- Core Integrity 0/250 Matter 208/300 Energy 250/250 System Corruption 0% Temperature Cool (9) Movement Rolling (100) Ox2 Location -10/Mines Parts ------- > --- POWER (1) -------- Ion Engine > --- PROPULSION (2) --- Wheel Wheel > --- UTILITY (2) ------ High-capacity Storage Unit Targeting Computer > --- WEAPON (2) ------- Light Assault Rifle Grenade Launcher > --- INVENTORY (12) --- Ion Engine Wheel Sensor Array Signal Interpreter Propulsion Shielding Medium Armor Plating EM Pulse Gun Small Laser Assault Rifle Light Assault Rifle Light Cannon Plasma Cutter Peak State ------------ > --- POWER ------------ Ion Engine > --- PROPULSION ------- Wheel Wheel > --- UTILITY ---------- High-capacity Storage Unit Targeting Computer > --- WEAPON ----------- Small Laser Light Assault Rifle > --- INVENTORY -------- Ion Engine Light Treads Light Treads Aluminum Leg Sensor Array Signal Interpreter Propulsion Shielding Small Laser Light Cannon Light Cannon Grenade Launcher Grenade Launcher [Rating: 8] Favorites ----------- Power Ion Engine Engine Ion Engine Propulsion Wheel Wheel Wheel Utility High-capacity Storage Unit Device Sensor Array Storage High-capacity Storage Unit Processor Targeting Computer Weapon Light Assault Rifle Energy Gun Small Laser Ballistic Gun Light Assault Rifle Ballistic Cannon Light Cannon Launcher Grenade Launcher Build | -11 -10 -10 ------- Run | Scr Mat Min Slots Evolved . | . . . Power . | . . . Propulsion . | . . . Utility . | . . . Weapon . | . . . Parts Attached 33 | 6 21 6 Power 4 | 1 3 . Engine 4 | 1 3 . Core . | . . . Reactor . | . . . Propulsion 8 | 2 4 2 Treads . | . . . Leg . | . . . Wheel 8 | 2 4 2 Hover . | . . . Flight . | . . . Utility 5 | 1 4 . Device 2 | . 2 . Storage 2 | 1 1 . Processor 1 | . 1 . Hackware . | . . . Protection . | . . . Artifact . | . . . Weapon 16 | 2 10 4 Energy Gun 4 | . 4 . Energy Cannon . | . . . Ballistic Gun 6 | 2 2 2 Ballistic Cannon 2 | . 2 . Launcher 4 | . 2 2 Special Weapon . | . . . Impact Weapon . | . . . Slashing Weapon . | . . . Piercing Weapon . | . . . Special Melee Weapon . | . . . Unidentified Prototypes . | . . . Parts Lost 8 | . 8 . Power 2 | . 2 . Propulsion 3 | . 3 . Utility . | . . . Weapon 3 | . 3 . Highest Loss Streak 5 | . 5 . Average Slot Usage (%) 92 | . 90 100 Engine 13 | . 13 14 Wheel 25 | . 24 28 Device 2 | . 2 . Storage 14 | . 14 14 Processor 8 | . 6 14 Energy Gun 3 | . 5 . Ballistic Gun 15 | . 14 18 Ballistic Cannon 3 | . 5 . Launcher 4 | . 2 9 Naked Turns . | . . . Heaviest Build 44 | 9 44 41 Greatest Support 32 | 32 32 20 Greatest Overweight (x) 4 | . 4 2 Average Overweight (x) 1 | . 1 1 Largest Inventory Capacity 12 | 6 12 12 Average Capacity 11 | 4 11 12 Most Carried 12 | 6 12 12 Average Carried 9 | 3 9 11 Final Capacity 12 | 6 12 12 Final Carried 12 | 6 12 12 Class Distribution -------------------- 64% | Scavenger-Mutant 35% | Mutant Dominant Class ---------------- Scavenger-Mutant | -10/Materials Scavenger-Mutant | -10/Mines Resources | -11 -10 -10 ----------- Run | Scr Mat Min Matter Collected 824 | 212 555 57 Remotely . | . . . Salvage Created 913 | . 846 67 Parts 67 | . 56 11 Haulers Intercepted 2 | . 2 . Recyclers Shooed . | . . . Parts Field Recycled . | . . . Retrieved Matter . | . . . Parts Self-Destructed . | . . . Prevented . | . . . Kills | -11 -10 -10 ------- Run | Scr Mat Min Combat Hostiles Destroyed 27 | . 21 6 Guns 11 | . 10 1 Cannons 6 | . 6 . AOE 10 | . 5 5 Classes Destroyed 7 | . 7 . Worker 4 | . 2 2 Builder 3 | . 3 . Hauler 2 | . 2 . Operator 3 | . 3 . Watcher 1 | . 1 . Swarmer 9 | . 3 6 Grunt 18 | . 18 . Best Kill Streak 7 | . 7 3 Combat Bots Only 3 | . 3 3 Max Kills in Single Turn 3 | . 2 3 Gunslinging . | . . . Exploded 3 | . 2 3 Melee . | . . . Uniques/NPCs Destroyed . | . . . Combat | -11 -10 -10 -------- Run | Scr Mat Min Damage Taken 1282 | . 1093 189 Core 262 | . 194 68 Absorbed by Shields . | . . . Core Remaining (%) 100 | 100 . . Volleys Fired 112 | . 103 9 Largest 2 | . 2 2 Hottest 80 | . 80 50 Shots Fired 213 | . 197 16 Gun 163 | . 154 9 Cannon 34 | . 34 . Launcher 16 | . 9 7 Special . | . . . Kinetic 130 | . 121 9 Thermal 67 | . 67 . Explosive 16 | . 9 7 Electromagnetic . | . . . Robot Hit Streak 10 | . 10 2 Robot Miss Streak 4 | . 4 3 Penetration Max . | . . . Secondary Targets 4 | . 4 . Max Gunslinging Chain 1 | . 1 . Shots Hit Robots 119 | . 114 5 Core Hits 67 | . 55 12 Critical Hits . | . . . Critical Kills . | . . . Critical Parts Destroyed . | . . . Melee Attacks . | . . . Impact . | . . . Slashing . | . . . Piercing . | . . . Sneak Attacks . | . . . Combat Hostiles . | . . . Follow-up Attacks . | . . . Damage Inflicted 2012 | . 1706 306 Guns 971 | . 929 42 Cannons 432 | . 432 . Explosions 609 | . 345 264 Melee . | . . . Ramming . | . . . Kinetic 931 | . 889 42 Thermal 472 | . 472 . Explosive 609 | . 345 264 Electromagnetic . | . . . Impact . | . . . Slashing . | . . . Piercing . | . . . Highest Corruption . | . . . Average Corruption . | . . . Corruption Purged . | . . . Overload Shots . | . . . Overflow Damage . | . . . Projectiles . | . . . Explosions . | . . . Melee . | . . . Knockbacks 5 | . 5 . Impact . | . . . Kinetic 5 | . 5 . Secondary . | . . . Self-Inflicted Damage 75 | . . 75 Shots 2 | . . 2 Rammed . | . . . Targets Rammed . | . . . Kicked . | . . . Crushed . | . . . Highest Temperature 154 | . 154 20 Average Temperature 31 | . 32 8 Received Heat Transfer 573 | . 564 9 Siege Activations . | . . . Robots Corrupted . | . . . Combat Hostiles . | . . . Parts Fried . | . . . Impact Corruptions . | . . . Robots Melted . | . . . Combat Hostiles . | . . . Parts Melted 1 | . 1 . Heat Transferred 1147 | . 1147 . Parts Sabotaged . | . . . Parts Stolen . | . . . Parts Stripped . | . . . Power Chain Reactions . | . . . Missiles Intercepted . | . . . Alert | -11 -10 -10 ------- Run | Scr Mat Min Peak Influence 391 | . 391 292 Initial 127 | . . 127 Average 195 | . 208 182 Maximum Alert Level 1 | . 1 1 Low Security (%) 40 | 100 41 31 Level 1 59 | . 58 68 Level 2 . | . . . Level 3 . | . . . Level 4 . | . . . Level 5 . | . . . High Security . | . . . Max Security . | . . . Squads Dispatched 5 | . 5 . Investigation 1 | . 1 . Extermination . | . . . Reinforcement 4 | . 4 . Assault . | . . . Garrison . | . . . Intercept . | . . . Construction Impeded . | . . . Haulers Reinforced . | . . . Stealth | -11 -10 -10 --------- Run | Scr Mat Min Distress Signals 3 | . 3 . Communications Jammed . | . . . Distress Signals . | . . . Times Spotted 52 | . 43 9 Peak Tracking Total 6 | . 6 3 Tactical Retreats 1 | . 1 . Traps | -11 -10 -10 ------- Run | Scr Mat Min Traps Triggered 2 | . 2 . Indirectly . | . . . Trap Hack Attempts . | . . . Triggered . | . . . Disarmed . | . . . Reprogrammed . | . . . Reused . | . . . Traps Extracted . | . . . Installed . | . . . Triggered . | . . . Machines | -11 -10 -10 ---------- Run | Scr Mat Min Machines Disabled 3 | . 2 1 Max in Single Turn 1 | . 1 1 Machines Sabotaged . | . . . Garrisons Compromised . | . . . Overloaded Fab Kills . | . . . Fab Network Shutdowns . | . . . Hacking | -11 -10 -10 --------- Run | Scr Mat Min Machines Accessed 5 | . 4 1 Terminals 4 | . 4 . Fabricators . | . . . Repair Stations . | . . . Recycling Units . | . . . Scanalyzers . | . . . Garrison Access . | . . . Total Hacks 9 | . 8 1 Successful 5 | . 4 1 Failed 4 | . 4 . Catastrophic 3 | . 3 . Database Lockouts . | . . . Manual 6 | . 6 . Terminals 8 | . 8 . Fabricators . | . . . Repair Stations . | . . . Recycling Units . | . . . Scanalyzers . | . . . Garrison Access . | . . . Terminal Hacks 5 | . 4 1 Prototype ID Bank 2 | . 2 . Open Door 1 | . . 1 Terminal Index 1 | . 1 . Unreport Threat 1 | . 1 . Fabricator Hacks . | . . . Repair Station Hacks . | . . . Recycling Unit Hacks . | . . . Scanalyzer . | . . . Garrison Access Hacks . | . . . Unauthorized Hacks . | . . . Terminals . | . . . Fabricators . | . . . Repair Stations . | . . . Recycling Units . | . . . Scanalyzers . | . . . Garrison Access . | . . . Data Cores Recovered . | . . . Used . | . . . Hacking Detections 4 | . 4 . Full Trace Events . | . . . Feedback Events . | . . . Feedback Blocked . | . . . Robot Schematics Acquired . | . . . Robots Built . | . . . Matter . | . . . Time . | . . . Total Robot Build Rating . | . . . Part Schematics Acquired . | . . . Parts Built . | . . . Matter . | . . . Time . | . . . Total Part Build Rating . | . . . Parts Repaired . | . . . Time . | . . . Parts Recycled . | . . . Recycled Matter . | . . . Retrieved Matter . | . . . Retrieved Components . | . . . Parts Scanalyzed . | . . . Part Schematics Acquired . | . . . Parts Damaged . | . . . Bothacking | -11 -10 -10 ------------ Run | Scr Mat Min Used RIF Installer . | . . . Robots Hacked . | . . . Non-combat . | . . . Combat . | . . . Robot Hacks Applied . | . . . Relay Couplers Released . | . . . Robots Rewired . | . . . Allies Hacked . | . . . Hacks Repelled . | . . . Allies | -11 -10 -10 -------- Run | Scr Mat Min Total Allies 1 | . . 1 Largest Group 1 | . . 1 Highest-Rated Group 31 | . . 31 Highest-Rated Ally 31 | . . 31 Total Orders . | . . . Ally Attacks . | . . . Total Damage . | . . . Kills . | . . . Allies Corrupted . | . . . Allies Melted . | . . . Intel | -11 -10 -10 ------- Run | Scr Mat Min Robot Analysis Total . | . . . Derelict Logs Recovered . | . . . Drone Launches . | . . . Drone Recoveries . | . . . Exploration | -11 -10 -10 ------------- Run | Scr Mat Min Turns Passed 1999 | 64 1424 511 Spaces Moved 1577 | 53 1064 460 Core 6 | 6 . . Treads . | . . . Legs . | . . . Wheels 1571 | 47 1064 460 Hover . | . . . Flight . | . . . Fastest Speed 50 | 50 90 90 Average Speed 96 | 94 97 96 Slowest Speed 120 | 100 120 100 Overloaded Moves . | . . . Propulsion Burnouts . | . . . Robots Hopped . | . . . Cave-ins Triggered . | . . . Exploration Rate (%) 55 | 4 99 64 Regions Visited 2 Branch Regions 1 Pre-discovered Areas . | . . . Known Exits Taken . | . . . Unknown Exits Taken 2 | 1 1 . Scrap Searched . | . . . Spaces Dug . | . . . Terrain Destroyed 119 | . 60 59 Melee . | . . . Projectile . | . . . AOE 119 | . 60 59 Terrain Rammed . | . . . Walls Destroyed . | . . . Machines Disabled . | . . . Actions | -11 -10 -10 --------- Run | Scr Mat Min Total 1851 | 64 1272 515 Wait 89 | . 56 33 Move 1575 | 52 1063 460 Hop . | . . . Pick Up 24 | 6 16 2 Fast Attach 14 | 6 8 . Attach 5 | . 5 . Detach 2 | . 2 . Swap 14 | . 8 6 Drop 16 | . 11 5 Fire 112 | . 103 9 Melee . | . . . Ram . | . . . Kick . | . . . Crush . | . . . Escape Stasis . | . . . Rewire . | . . . Trap . | . . . Miscellaneous . | . . . Route ------- -11/Scrapyard -10/Materials (discovered 4 exits: [*Mat x3] / *Min) -10/Mines (discovered 1 exit: [*Mat]) History --------- Turn | Location | Event 17 | -11/Scrapyard | Discovered new exit (range 15) 65 | -11/Scrapyard | Entered Materials 298 | -10/Materials | Lost 5 parts (1p1n3w) 311 | -10/Materials | Build established: Mutant 522 | -10/Materials | Core integrity fell below 50% 667 | -10/Materials | Discovered new exit (range 14) 827 | -10/Materials | Discovered new exit (range 6) 1016 | -10/Materials | Build established: Scavenger-Mutant 1038 | -10/Materials | Discovered new exit (range 14) 1158 | -10/Materials | Discovered new exit (range 15) 1489 | -10/Materials | Entered Mines 1646 | -10/Mines | Discovered new exit (range 16) 1715 | -10/Mines | Met a Derelict who couldn't figure out how to use a Trap Extractor 1867 | -10/Mines | Core integrity fell below 20% 1929 | -10/Mines | Found a hidden stash of uninstalled traps 1933 | -10/Mines | Received a Mining Laser from a helpful Derelict 2000 | -10/Mines | Destroyed by G-47 Trooper with Particle Gun Last Messages --------------- 01868_ S-10 Pest destroyed. 01869_ U-05 Engineer lays Concrete. 01871_ S-10 Pest destroyed. 01871_ Seismic Survey Station disabled. 01872_ U-05 Engineer lays Concrete. 01876_ U-05 Engineer builds a Wall. 01877_ The unstable cave ceiling collapses. 01877_ S-10 Pest destroyed. 01880_ U-05 Engineer lays Concrete. 01882_ U-05 Engineer builds a Wall. 01886_ The unstable cave ceiling collapses. 01887_ U-05 Engineer lays Concrete. 01889_ U-05 Engineer builds a Wall. 01929_ A stash of uninstalled traps is collected here! 01931_ A derelict emerges from the shadows: "What are you doing alone down here?" 01933_ 0W-O6O(g): "And why aren't you carrying a mining laser?! Certainly you don't want THEM to uncover you when the ceiling comes crashing down? Here, take my spare." 01936_ 0W-O6O(g): "You're apparently new around these parts, I'll cover you." 01946_ 0W-O6O(g): "Mining lasers are a lot more useful than you might think..." Map ----- +----------------------------------------------------+ | ???????????????????????????????????????? | | ???????????????????????????????????????? | | ???????????????????????????????????????? | | ???????????????????????????????????????? | | ???????????????????????????????????????? | | ???????????????????????????????????????? | | ???????????????????????????????????????? | | ???????????????????????????????????????? | | ???????????????????????????????????????? | | ???????????????????????????????????????? | | ??????????????# #?????????????????????? | | ???????????## ##???????????????????? | | ??????????## ##??????????? ??????? | | ?????????## #??????????g ##????? | | ?????????# #?????????# ?????? | | ?????????? #????????#gr ?????? | | #?????????# #???????# t??????? | | #????????## #??????# ???????? | | #??????### #??????# ???????? | | #?????## ####### ??????? | | #?????# ## #???????? | | #????## #????????? | | #???## #?????????? | | #???# #???????????? | | ##### #???????????? | | @ #???????????? | | t g #???????????? | | ##### ## ##???????????? | | #???# #### ##????????????? | | #???### #??## ##????????????? | | #?????## ##???# ##????####???? | | #??????## ##????# ##??## #???? | | #???????#####????## #### #???? | | #????????????????# ## #???? | | ##????????###????# #????? | | ##???????## ##???## #????? | | ##??????## #???## & ##???? | | ##?????## ##### & & ## ##??? | | #????## | & #### #??? | | #????# ##??# #??? | | #????# ########## ###???# #??? | | ##????## ##????????####?????# #??? | | ##??????####??????????????????# #??? | | ??????????????????????????????## #??? | | ???????????????????????????????## ##??? | | ????????????????????????????????####???? | | ???????????????????????????????????????? | | | | | | | +----------------------------------------------------+ Best States ------------- Heat Dissipation 25 Energy Generation 10 Energy Capacity 250 Matter Stores 300 Matter Capacity 300 Sight Range 16 Robot Scan Range 10 Terrain Scan Density 10 Evasion (%) 42 Targeting Accuracy 5 Item Schematics ----------------- None Robot Schematics ------------------ None Fabricated ------------ Nothing Alien Tech Used ----------------- None Achievements -------------- None Challenges ------------ None Game ------ Seed TargetingContainmentCutter Manual? 0 Play Time 00:25:13 Cumulative 72.6 hours Start 2021.05.06 @ 16:55:50 End 2021.05.06 @ 17:17:51 Sessions 1 Manual Loads 0 Difficulty Rogue Special Mode None Game No. 44 Rogue 29 Adventurer 15 Explorer 0 Win Type - Total 0 Types 0/0/0/0/0/0/0/0/0 Lore% 34 Gallery% 36 Achievement% 31 Wizard Run 0 Options --------- ASCII 0 Keyboard 1 Movement Vi Keybinds 1 Fullscreen 2 Font 14/SmallcapsGlow Map View 84x54 Tactical HUD 1 Map Filters NONE Filters NONE Steam 1 RUN: ae305d97-a24a-451d-a0a5-c758562fc7bb